[Event "Titled Tuesday Blitz January 31 Early 2023"]
[White "Reprintsev, Alexander"]
[Black "Sanchez, Robert"]
[WhiteFideId "14100541"]
[BlackFideId "2034360"]
[WhiteElo "2253"]
[BlackElo "1966"]
[Result "0-1"]
[Round "11"]
[TimeControl "180+2"]
[Date "2023.01.31"]
[WhiteClock "0:00:13"]
[BlackClock "0:00:33"]

1. e4 {[%clk 0:03:00]}  e6 {[%clk 0:02:53]} 2. d4 {[%clk 0:03:00]}  d5 {[%clk 0:02:53]} 3. Nc3 {[%clk 0:03:00]}  Nf6 {[%clk 0:02:53]} 4. Bg5 {[%clk 0:03:00]}  Be7 {[%clk 0:02:53]} 5. e5 {[%clk 0:02:59]}  Nfd7 {[%clk 0:02:53]} 6. h4 {[%clk 0:02:59]}  h6 {[%clk 0:02:49]} 7. Be3 {[%clk 0:03:00]}  c5 {[%clk 0:02:46]} 8. f4 {[%clk 0:02:51]}  cxd4 {[%clk 0:02:45]} 9. Bxd4 {[%clk 0:02:51]}  Nc6 {[%clk 0:02:45]} 10. Nf3 {[%clk 0:02:51]}  f6 {[%clk 0:02:42]} 11. exf6 {[%clk 0:02:50]}  Nxf6 {[%clk 0:02:42]} 12. Bb5 {[%clk 0:02:49]}  O-O {[%clk 0:02:36]} 13. g3 {[%clk 0:02:09]}  Nxd4 {[%clk 0:02:22]} 14. Qxd4 {[%clk 0:02:07]}  Bd7 {[%clk 0:02:13]} 15. Bxd7 {[%clk 0:02:04]}  Qxd7 {[%clk 0:02:13]} 16. Ne5 {[%clk 0:02:02]}  Qc7 {[%clk 0:02:08]} 17. Ng6 {[%clk 0:01:59]}  Bc5 {[%clk 0:02:02]} 18. Qd3 {[%clk 0:01:59]}  Rfe8 {[%clk 0:01:58]} 19. O-O-O {[%clk 0:01:59]}  Rac8 {[%clk 0:01:55]} 20. Kb1 {[%clk 0:01:55]}  a6 {[%clk 0:01:54]} 21. Ne2 {[%clk 0:01:54]}  Ne4 {[%clk 0:01:50]} 22. c3 {[%clk 0:01:53]}  Nf2 {[%clk 0:01:47]} 23. Qd2 {[%clk 0:01:52]}  Nxh1 {[%clk 0:01:46]} 24. Rxh1 {[%clk 0:01:51]}  b5 {[%clk 0:01:44]} 25. Nc1 {[%clk 0:01:44]}  b4 {[%clk 0:01:42]} 26. Nb3 {[%clk 0:01:29]}  bxc3 {[%clk 0:01:42]} 27. Qxc3 {[%clk 0:01:29]}  Bd6 {[%clk 0:01:33]} 28. Qd3 {[%clk 0:01:27]}  Qc4 {[%clk 0:01:29]} 29. Rd1 {[%clk 0:01:24]}  Qxd3+ {[%clk 0:01:25]} 30. Rxd3 {[%clk 0:01:24]}  Kh7 {[%clk 0:01:24]} 31. h5 {[%clk 0:01:23]}  Rc4 {[%clk 0:01:14]} 32. Nd2 {[%clk 0:01:22]}  Rc5 {[%clk 0:01:06]} 33. Nb3 {[%clk 0:01:11]}  Rc4 {[%clk 0:01:01]} 34. Nd2 {[%clk 0:01:10]}  Rb4 {[%clk 0:01:01]} 35. a3 {[%clk 0:01:08]}  Rb7 {[%clk 0:00:58]} 36. Ka2 {[%clk 0:01:06]}  Reb8 {[%clk 0:00:55]} 37. b3 {[%clk 0:01:06]}  Rf7 {[%clk 0:00:55]} 38. Re3 {[%clk 0:00:55]}  Rc7 {[%clk 0:00:49]} 39. Rxe6 {[%clk 0:00:25]}  Rc2+ {[%clk 0:00:49]} 40. Kb1 {[%clk 0:00:25]}  Rxd2 {[%clk 0:00:49]} 41. Rxd6 {[%clk 0:00:25]}  Rxb3+ {[%clk 0:00:43]} 42. Kc1 {[%clk 0:00:25]}  Rh2 {[%clk 0:00:38]} 43. g4 {[%clk 0:00:13]}  Rg3 {[%clk 0:00:33]} 0-1


[Site "https://www.chess.com"]

[Event "Titled Tuesday Blitz January 31 Early 2023"]
[White "Fiorito, Francisco"]
[Black "Andreev, Konstantin"]
[WhiteFideId "180165"]
[BlackFideId "24239305"]
[WhiteElo "2305"]
[BlackElo "2195"]
[Result "1-0"]
[Round "11"]
[TimeControl "180+2"]
[Date "2023.01.31"]
[WhiteClock "0:00:34"]
[BlackClock "0:00:01"]

1. e4 {[%clk 0:02:59]}  c5 {[%clk 0:02:52]} 2. d4 {[%clk 0:02:59]}  cxd4 {[%clk 0:02:53]} 3. c3 {[%clk 0:02:59]}  dxc3 {[%clk 0:02:53]} 4. Nxc3 {[%clk 0:02:59]}  e6 {[%clk 0:02:54]} 5. Nf3 {[%clk 0:02:58]}  a6 {[%clk 0:02:54]} 6. Bd3 {[%clk 0:02:54]}  Nc6 {[%clk 0:02:53]} 7. O-O {[%clk 0:02:54]}  Nge7 {[%clk 0:02:54]} 8. e5 {[%clk 0:02:53]}  Ng6 {[%clk 0:02:50]} 9. Bxg6 {[%clk 0:02:49]}  hxg6 {[%clk 0:02:49]} 10. Ne4 {[%clk 0:02:50]}  Qc7 {[%clk 0:02:30]} 11. Bf4 {[%clk 0:02:45]}  b5 {[%clk 0:02:22]} 12. Rc1 {[%clk 0:02:44]}  Bb7 {[%clk 0:02:22]} 13. Nfg5 {[%clk 0:02:41]}  f6 {[%clk 0:02:17]} 14. exf6 {[%clk 0:01:44]}  Qxf4 {[%clk 0:02:07]} 15. f7+ {[%clk 0:01:44]}  Ke7 {[%clk 0:01:59]} 16. g3 {[%clk 0:01:44]}  Qc7 {[%clk 0:01:50]} 17. Qd3 {[%clk 0:01:34]}  Qe5 {[%clk 0:01:02]} 18. Rfd1 {[%clk 0:01:31]}  d5 {[%clk 0:00:59]} 19. Nxe6 {[%clk 0:01:10]}  Qxe4 {[%clk 0:00:38]} 20. Qc3 {[%clk 0:00:47]}  Qxe6 {[%clk 0:00:22]} 21. Re1 {[%clk 0:00:47]}  Qxe1+ {[%clk 0:00:19]} 22. Rxe1+ {[%clk 0:00:46]}  Kxf7 {[%clk 0:00:20]} 23. Qf3+ {[%clk 0:00:47]}  Kg8 {[%clk 0:00:20]} 24. Qxd5+ {[%clk 0:00:47]}  Kh7 {[%clk 0:00:21]} 25. Re4 {[%clk 0:00:47]}  Be7 {[%clk 0:00:19]} 26. Qd7 {[%clk 0:00:41]}  Rhb8 {[%clk 0:00:06]} 27. Re3 {[%clk 0:00:38]}  Ra7 {[%clk 0:00:06]} 28. g4 {[%clk 0:00:36]}  Bh4 {[%clk 0:00:02]} 29. g5 {[%clk 0:00:37]}  Rd8 {[%clk 0:00:02]} 30. Qg4 {[%clk 0:00:34]}  Bxg5 {[%clk 0:00:02]} 31. Rh3+ {[%clk 0:00:33]}  Kg8 {[%clk 0:00:02]} 32. Qe6+ {[%clk 0:00:33]}  Kf8 {[%clk 0:00:01]} 33. Rh8# {[%clk 0:00:34]} 1-0


[Site "https://www.chess.com"]

[Event "Titled Tuesday Blitz January 31 Early 2023"]
[White "Derjabin, Ilja"]
[Black "Babikov, Ivan"]
[WhiteFideId "14104768"]
[BlackFideId "4161106"]
[WhiteElo "2333"]
[BlackElo "2239"]
[Result "1-0"]
[Round "11"]
[TimeControl "180+2"]
[Date "2023.01.31"]
[WhiteClock "0:00:03"]
[BlackClock "0:00:02"]

1. d4 {[%clk 0:01:55]}  d5 {[%clk 0:02:59]} 2. c4 {[%clk 0:01:49]}  dxc4 {[%clk 0:03:00]} 3. Nc3 {[%clk 0:01:49]}  Nf6 {[%clk 0:03:00]} 4. e4 {[%clk 0:01:48]}  e6 {[%clk 0:02:55]} 5. Bxc4 {[%clk 0:01:47]}  a6 {[%clk 0:02:55]} 6. e5 {[%clk 0:01:14]}  Nd5 {[%clk 0:02:54]} 7. Nge2 {[%clk 0:01:12]}  b5 {[%clk 0:02:52]} 8. Bxd5 {[%clk 0:01:11]}  exd5 {[%clk 0:02:52]} 9. O-O {[%clk 0:01:12]}  Bb7 {[%clk 0:02:52]} 10. Nf4 {[%clk 0:01:12]}  Be7 {[%clk 0:02:49]} 11. e6 {[%clk 0:01:11]}  O-O {[%clk 0:02:45]} 12. Re1 {[%clk 0:01:10]}  b4 {[%clk 0:02:36]} 13. Na4 {[%clk 0:01:08]}  Bc8 {[%clk 0:02:21]} 14. Nc5 {[%clk 0:01:03]}  Bxc5 {[%clk 0:02:17]} 15. dxc5 {[%clk 0:01:02]}  fxe6 {[%clk 0:02:18]} 16. Nxe6 {[%clk 0:00:58]}  Bxe6 {[%clk 0:02:18]} 17. Rxe6 {[%clk 0:00:58]}  Qd7 {[%clk 0:02:17]} 18. Re5 {[%clk 0:00:52]}  c6 {[%clk 0:02:11]} 19. Bg5 {[%clk 0:00:47]}  Qf7 {[%clk 0:01:55]} 20. Qd4 {[%clk 0:00:42]}  Qg6 {[%clk 0:01:42]} 21. f4 {[%clk 0:00:33]}  Nd7 {[%clk 0:01:36]} 22. Re7 {[%clk 0:00:32]}  Nf6 {[%clk 0:01:36]} 23. Bxf6 {[%clk 0:00:32]}  Rxf6 {[%clk 0:01:24]} 24. Rae1 {[%clk 0:00:31]}  Raf8 {[%clk 0:01:23]} 25. Rf1 {[%clk 0:00:17]}  a5 {[%clk 0:01:08]} 26. g3 {[%clk 0:00:16]}  h5 {[%clk 0:00:48]} 27. Re5 {[%clk 0:00:14]}  Rf5 {[%clk 0:00:46]} 28. Rfe1 {[%clk 0:00:11]}  h4 {[%clk 0:00:45]} 29. Rxf5 {[%clk 0:00:09]}  Rxf5 {[%clk 0:00:44]} 30. Re3 {[%clk 0:00:07]}  h3 {[%clk 0:00:38]} 31. Qd3 {[%clk 0:00:04]}  Kh7 {[%clk 0:00:26]} 32. Kf2 {[%clk 0:00:03]}  Kg8 {[%clk 0:00:14]} 33. Qd4 {[%clk 0:00:04]}  Qg4 {[%clk 0:00:11]} 34. Re2 {[%clk 0:00:02]}  Qg6 {[%clk 0:00:09]} 35. Qe3 {[%clk 0:00:03]}  Qf7 {[%clk 0:00:07]} 36. Qe6 {[%clk 0:00:03]}  Kh7 {[%clk 0:00:01]} 37. Qxc6 {[%clk 0:00:03]}  d4 {[%clk 0:00:02]} 38. Qe6 {[%clk 0:00:03]} 1-0


[Site "https://www.chess.com"]

[Event "Titled Tuesday Blitz January 31 Early 2023"]
[White "Lehtosaari, Mauri"]
[Black "Fernandez Garcia, Gumersindo"]
[WhiteFideId "501999"]
[BlackFideId "24516740"]
[WhiteElo "2176"]
[BlackElo "2160"]
[Result "1-0"]
[Round "11"]
[TimeControl "180+2"]
[Date "2023.01.31"]
[WhiteClock "0:00:08"]
[BlackClock "0:01:04"]

1. d4 {[%clk 0:03:00]}  d5 {[%clk 0:02:54]} 2. Nf3 {[%clk 0:02:59]}  Nf6 {[%clk 0:02:53]} 3. Bg5 {[%clk 0:02:59]}  c5 {[%clk 0:02:43]} 4. e3 {[%clk 0:02:53]}  Nc6 {[%clk 0:02:44]} 5. c3 {[%clk 0:02:50]}  e6 {[%clk 0:02:41]} 6. Nbd2 {[%clk 0:02:49]}  h6 {[%clk 0:02:40]} 7. Bh4 {[%clk 0:02:47]}  Be7 {[%clk 0:02:41]} 8. Bd3 {[%clk 0:02:46]}  b6 {[%clk 0:02:38]} 9. O-O {[%clk 0:02:31]}  O-O {[%clk 0:02:38]} 10. Ne5 {[%clk 0:02:19]}  Nxe5 {[%clk 0:02:35]} 11. dxe5 {[%clk 0:02:20]}  Nd7 {[%clk 0:02:35]} 12. Bxe7 {[%clk 0:02:19]}  Qxe7 {[%clk 0:02:36]} 13. f4 {[%clk 0:02:19]}  Bb7 {[%clk 0:02:33]} 14. Qh5 {[%clk 0:01:54]}  f5 {[%clk 0:02:27]} 15. exf6 {[%clk 0:01:38]}  Nxf6 {[%clk 0:02:27]} 16. Qh4 {[%clk 0:01:28]}  e5 {[%clk 0:02:24]} 17. Rae1 {[%clk 0:00:48]}  e4 {[%clk 0:02:23]} 18. Bc2 {[%clk 0:00:47]}  a5 {[%clk 0:02:17]} 19. g4 {[%clk 0:00:44]}  Rae8 {[%clk 0:02:09]} 20. Rf2 {[%clk 0:00:40]}  Bc8 {[%clk 0:02:06]} 21. Rg2 {[%clk 0:00:33]}  Nh7 {[%clk 0:01:51]} 22. Qxe7 {[%clk 0:00:21]}  Rxe7 {[%clk 0:01:52]} 23. Bb3 {[%clk 0:00:20]}  Be6 {[%clk 0:01:52]} 24. h3 {[%clk 0:00:20]}  b5 {[%clk 0:01:50]} 25. f5 {[%clk 0:00:19]}  Bf7 {[%clk 0:01:50]} 26. Rf2 {[%clk 0:00:18]}  a4 {[%clk 0:01:50]} 27. Bc2 {[%clk 0:00:19]}  Ng5 {[%clk 0:01:50]} 28. Kg2 {[%clk 0:00:19]}  Be8 {[%clk 0:01:47]} 29. a3 {[%clk 0:00:18]}  Bc6 {[%clk 0:01:45]} 30. Kg3 {[%clk 0:00:18]}  Rd8 {[%clk 0:01:45]} 31. h4 {[%clk 0:00:19]}  Nf7 {[%clk 0:01:45]} 32. Nf1 {[%clk 0:00:17]}  Ne5 {[%clk 0:01:46]} 33. Nh2 {[%clk 0:00:17]}  b4 {[%clk 0:01:42]} 34. axb4 {[%clk 0:00:16]}  cxb4 {[%clk 0:01:43]} 35. cxb4 {[%clk 0:00:17]}  Rb7 {[%clk 0:01:43]} 36. Rc1 {[%clk 0:00:16]}  Rxb4 {[%clk 0:01:42]} 37. Bb1 {[%clk 0:00:14]}  Bb5 {[%clk 0:01:40]} 38. g5 {[%clk 0:00:14]}  Bd3 {[%clk 0:01:40]} 39. Kf4 {[%clk 0:00:14]}  Bxb1 {[%clk 0:01:33]} 40. Kxe5 {[%clk 0:00:14]}  Bd3 {[%clk 0:01:28]} 41. gxh6 {[%clk 0:00:14]}  gxh6 {[%clk 0:01:27]} 42. Rg1+ {[%clk 0:00:13]}  Kh8 {[%clk 0:01:26]} 43. Rg6 {[%clk 0:00:11]}  d4 {[%clk 0:01:19]} 44. Rxh6+ {[%clk 0:00:10]}  Kg7 {[%clk 0:01:20]} 45. Rg6+ {[%clk 0:00:11]}  Kh7 {[%clk 0:01:21]} 46. Rfg2 {[%clk 0:00:09]}  Rb5+ {[%clk 0:01:13]} 47. Kf4 {[%clk 0:00:09]}  Rb7 {[%clk 0:01:12]} 48. Ng4 {[%clk 0:00:09]}  Rg7 {[%clk 0:01:05]} 49. Nf6+ {[%clk 0:00:09]}  Kh8 {[%clk 0:01:04]} 50. Rh6+ {[%clk 0:00:08]} 1-0


[Site "https://www.chess.com"]

[Event "Titled Tuesday Blitz January 31 Early 2023"]
[White "Matveeva, Olga"]
[Black "Golubev, Mikhail"]
[WhiteFideId "24107018"]
[BlackFideId "14100983"]
[WhiteElo "2128"]
[BlackElo "2461"]
[Result "1-0"]
[Round "11"]
[TimeControl "180+2"]
[Date "2023.01.31"]
[WhiteClock "0:00:07"]
[BlackClock "0:00:01"]

1. d4 {[%clk 0:03:00]}  g6 {[%clk 0:02:55]} 2. c4 {[%clk 0:03:00]}  Bg7 {[%clk 0:02:55]} 3. Nf3 {[%clk 0:03:01]}  d6 {[%clk 0:02:55]} 4. g3 {[%clk 0:03:01]}  Nf6 {[%clk 0:02:54]} 5. Bg2 {[%clk 0:03:02]}  O-O {[%clk 0:02:55]} 6. O-O {[%clk 0:03:02]}  Nbd7 {[%clk 0:02:56]} 7. Nc3 {[%clk 0:03:02]}  e5 {[%clk 0:02:56]} 8. e4 {[%clk 0:03:02]}  Re8 {[%clk 0:02:56]} 9. h3 {[%clk 0:03:01]}  b6 {[%clk 0:02:53]} 10. Be3 {[%clk 0:02:56]}  exd4 {[%clk 0:02:45]} 11. Nxd4 {[%clk 0:02:57]}  Bb7 {[%clk 0:02:45]} 12. Qc2 {[%clk 0:02:54]}  Nc5 {[%clk 0:02:43]} 13. f3 {[%clk 0:02:47]}  d5 {[%clk 0:02:43]} 14. cxd5 {[%clk 0:02:42]}  Nxd5 {[%clk 0:02:42]} 15. Nxd5 {[%clk 0:02:41]}  Bxd5 {[%clk 0:02:42]} 16. Rfd1 {[%clk 0:02:39]}  Qe7 {[%clk 0:02:40]} 17. Bf2 {[%clk 0:02:33]}  Bb7 {[%clk 0:02:36]} 18. Rac1 {[%clk 0:02:30]}  a5 {[%clk 0:02:33]} 19. Nb5 {[%clk 0:02:25]}  Ne6 {[%clk 0:01:41]} 20. Qa4 {[%clk 0:01:47]}  Bxb2 {[%clk 0:01:33]} 21. Rc2 {[%clk 0:01:41]}  Bg7 {[%clk 0:01:32]} 22. Nxc7 {[%clk 0:01:30]}  Nxc7 {[%clk 0:00:56]} 23. Rd7 {[%clk 0:01:29]}  Qb4 {[%clk 0:00:40]} 24. Qxb4 {[%clk 0:01:22]}  axb4 {[%clk 0:00:41]} 25. Rcxc7 {[%clk 0:01:18]}  Bc8 {[%clk 0:00:34]} 26. Rxf7 {[%clk 0:01:17]}  Be5 {[%clk 0:00:34]} 27. Ra7 {[%clk 0:00:59]}  Be6 {[%clk 0:00:16]} 28. Rxh7 {[%clk 0:00:55]}  Bxa2 {[%clk 0:00:13]} 29. f4 {[%clk 0:00:35]}  b3 {[%clk 0:00:10]} 30. Bf1 {[%clk 0:00:22]}  b2 {[%clk 0:00:09]} 31. Bd3 {[%clk 0:00:21]}  Rad8 {[%clk 0:00:01]} 32. Bc2 {[%clk 0:00:07]} 1-0


[Site "https://www.chess.com"]

[Event "Titled Tuesday Blitz January 31 Early 2023"]
[White "Lopez Idarraga, Daniel Eduardo"]
[Black "Przybylski, Wojciech"]
[WhiteFideId "4405501"]
[BlackFideId "1117599"]
[WhiteElo "2009"]
[BlackElo "2321"]
[Result "1-0"]
[Round "11"]
[TimeControl "180+2"]
[Date "2023.01.31"]
[WhiteClock "0:01:46"]
[BlackClock "0:01:29"]

1. Nf3 {[%clk 0:03:00]}  Nc6 {[%clk 0:02:55]} 2. b3 {[%clk 0:03:01]}  e5 {[%clk 0:02:55]} 3. Bb2 {[%clk 0:03:02]}  Qe7 {[%clk 0:02:54]} 4. e4 {[%clk 0:03:01]}  Nf6 {[%clk 0:02:54]} 5. Nc3 {[%clk 0:03:00]}  Qd8 {[%clk 0:02:52]} 6. Bb5 {[%clk 0:02:58]}  Bc5 {[%clk 0:02:51]} 7. O-O {[%clk 0:02:05]}  d6 {[%clk 0:02:48]} 8. d4 {[%clk 0:02:01]}  exd4 {[%clk 0:02:47]} 9. Nxd4 {[%clk 0:02:02]}  Bd7 {[%clk 0:02:46]} 10. Nf5 {[%clk 0:01:59]}  O-O {[%clk 0:02:45]} 11. Nd5 {[%clk 0:01:56]}  Nxd5 {[%clk 0:02:44]} 12. Qg4 {[%clk 0:01:53]}  Bd4 {[%clk 0:01:45]} 13. Bxd4 {[%clk 0:01:47]}  g6 {[%clk 0:01:29]} 14. Nh6# {[%clk 0:01:46]} 1-0


[Site "https://www.chess.com"]

[Event "Titled Tuesday Blitz January 31 Early 2023"]
[White "Alfaro, William"]
[Black "Ramirez Allo, Eduardo"]
[WhiteFideId "6100457"]
[BlackFideId "2224178"]
[WhiteElo "2134"]
[BlackElo "2274"]
[Result "0-1"]
[Round "11"]
[TimeControl "180+2"]
[Date "2023.01.31"]
[WhiteClock "0:02:16"]
[BlackClock "0:02:15"]

1. e4 {[%clk 0:02:54]}  c5 {[%clk 0:03:00]} 2. Nf3 {[%clk 0:02:53]}  d6 {[%clk 0:03:00]} 3. d4 {[%clk 0:02:53]}  cxd4 {[%clk 0:03:01]} 4. Nxd4 {[%clk 0:02:54]}  Nf6 {[%clk 0:03:02]} 5. Nc3 {[%clk 0:02:53]}  a6 {[%clk 0:03:02]} 6. Bg5 {[%clk 0:02:53]}  Nbd7 {[%clk 0:03:02]} 7. f4 {[%clk 0:02:52]}  Qc7 {[%clk 0:03:02]} 8. Qf3 {[%clk 0:02:52]}  h6 {[%clk 0:03:02]} 9. Bh4 {[%clk 0:02:51]}  g5 {[%clk 0:03:03]} 10. Bf2 {[%clk 0:02:41]}  gxf4 {[%clk 0:03:00]} 11. O-O-O {[%clk 0:02:38]}  h5 {[%clk 0:02:53]} 12. h3 {[%clk 0:02:37]}  Ne5 {[%clk 0:02:49]} 13. Qxf4 {[%clk 0:02:36]}  Bh6 {[%clk 0:02:49]} 14. Be3 {[%clk 0:02:31]}  Bxf4 {[%clk 0:02:48]} 15. Bxf4 {[%clk 0:02:32]}  b5 {[%clk 0:02:42]} 16. Bg5 {[%clk 0:02:30]}  Be6 {[%clk 0:02:35]} 17. a3 {[%clk 0:02:28]}  Rc8 {[%clk 0:02:28]} 18. Rd2 {[%clk 0:02:24]}  Qa5 {[%clk 0:02:28]} 19. Bxf6 {[%clk 0:02:18]}  exf6 {[%clk 0:02:27]} 20. Bxb5+ {[%clk 0:02:16]}  axb5 {[%clk 0:02:26]} 21. Ndxb5 {[%clk 0:02:16]}  O-O {[%clk 0:02:15]} 0-1


[Site "https://www.chess.com"]

[Event "Titled Tuesday Blitz January 31 Early 2023"]
[White "Matt, Fabian"]
[Black "Koridze, Lile"]
[WhiteFideId "1623303"]
[BlackFideId "13612514"]
[WhiteElo "2308"]
[BlackElo "2191"]
[Result "0-1"]
[Round "11"]
[TimeControl "180+2"]
[Date "2023.01.31"]
[WhiteClock "0:00:01"]
[BlackClock "0:00:33"]

1. d4 {[%clk 0:03:00]}  Nf6 {[%clk 0:02:59]} 2. c4 {[%clk 0:02:57]}  e6 {[%clk 0:02:59]} 3. Nf3 {[%clk 0:02:56]}  d5 {[%clk 0:03:00]} 4. g3 {[%clk 0:02:56]}  Bb4+ {[%clk 0:03:00]} 5. Bd2 {[%clk 0:02:54]}  Bxd2+ {[%clk 0:03:00]} 6. Nbxd2 {[%clk 0:02:52]}  O-O {[%clk 0:03:00]} 7. Bg2 {[%clk 0:02:52]}  c6 {[%clk 0:02:59]} 8. O-O {[%clk 0:02:51]}  b6 {[%clk 0:03:00]} 9. cxd5 {[%clk 0:02:41]}  cxd5 {[%clk 0:02:55]} 10. Rc1 {[%clk 0:02:31]}  Ba6 {[%clk 0:02:55]} 11. Re1 {[%clk 0:02:27]}  Nbd7 {[%clk 0:02:54]} 12. Qa4 {[%clk 0:02:24]}  Bb7 {[%clk 0:02:53]} 13. e3 {[%clk 0:02:01]}  a6 {[%clk 0:02:52]} 14. Bf1 {[%clk 0:02:00]}  b5 {[%clk 0:02:52]} 15. Qa3 {[%clk 0:01:57]}  Nb6 {[%clk 0:02:51]} 16. b3 {[%clk 0:01:55]}  Nfd7 {[%clk 0:02:35]} 17. Rc2 {[%clk 0:01:49]}  Qf6 {[%clk 0:02:20]} 18. Rec1 {[%clk 0:01:40]}  Rfc8 {[%clk 0:02:05]} 19. Qd6 {[%clk 0:01:32]}  Rxc2 {[%clk 0:01:59]} 20. Rxc2 {[%clk 0:01:33]}  Rc8 {[%clk 0:01:58]} 21. Rxc8+ {[%clk 0:01:24]}  Bxc8 {[%clk 0:01:58]} 22. Ne5 {[%clk 0:01:21]}  Qd8 {[%clk 0:01:40]} 23. Ndf3 {[%clk 0:00:39]}  Qf8 {[%clk 0:01:24]} 24. Qc7 {[%clk 0:00:39]}  f6 {[%clk 0:00:53]} 25. Nxd7 {[%clk 0:00:29]}  Nxd7 {[%clk 0:00:51]} 26. a4 {[%clk 0:00:23]}  bxa4 {[%clk 0:00:48]} 27. bxa4 {[%clk 0:00:24]}  Kf7 {[%clk 0:00:40]} 28. Bxa6 {[%clk 0:00:21]}  Bxa6 {[%clk 0:00:39]} 29. Qxd7+ {[%clk 0:00:22]}  Qe7 {[%clk 0:00:40]} 30. Qc6 {[%clk 0:00:18]}  Bc4 {[%clk 0:00:40]} 31. Nd2 {[%clk 0:00:14]}  Be2 {[%clk 0:00:39]} 32. a5 {[%clk 0:00:09]}  Qa7 {[%clk 0:00:39]} 33. Nb3 {[%clk 0:00:09]}  Qb8 {[%clk 0:00:38]} 34. Qb6 {[%clk 0:00:05]}  Qc8 {[%clk 0:00:38]} 35. Nc5 {[%clk 0:00:04]}  e5 {[%clk 0:00:39]} 36. a6 {[%clk 0:00:02]}  exd4 {[%clk 0:00:39]} 37. Qb7+ {[%clk 0:00:03]}  Qxb7 {[%clk 0:00:33]} 38. axb7 {[%clk 0:00:04]}  d3 {[%clk 0:00:33]} 39. b8=Q {[%clk 0:00:04]}  d2 {[%clk 0:00:33]} 40. Qb7+ {[%clk 0:00:01]}  Kg6 {[%clk 0:00:33]} 0-1


[Site "https://www.chess.com"]

[Event "Titled Tuesday Blitz January 31 Early 2023"]
[White "Wartiovaara, Oliver"]
[Black "Zaichenko, Daria"]
[WhiteFideId "513024"]
[BlackFideId "4197453"]
[WhiteElo "2264"]
[BlackElo "2104"]
[Result "0-1"]
[Round "11"]
[TimeControl "180+2"]
[Date "2023.01.31"]
[WhiteClock "0:00:02"]
[BlackClock "0:00:59"]

1. c4 {[%clk 0:03:00]}  e6 {[%clk 0:02:59]} 2. Nf3 {[%clk 0:02:57]}  d5 {[%clk 0:02:57]} 3. g3 {[%clk 0:02:58]}  c5 {[%clk 0:02:57]} 4. Bg2 {[%clk 0:02:58]}  Nc6 {[%clk 0:02:57]} 5. d4 {[%clk 0:02:49]}  Nf6 {[%clk 0:02:55]} 6. cxd5 {[%clk 0:02:45]}  exd5 {[%clk 0:02:55]} 7. O-O {[%clk 0:02:45]}  cxd4 {[%clk 0:02:51]} 8. Nxd4 {[%clk 0:02:46]}  Be7 {[%clk 0:02:51]} 9. Nxc6 {[%clk 0:02:40]}  bxc6 {[%clk 0:02:51]} 10. Qc2 {[%clk 0:02:41]}  Bd7 {[%clk 0:02:47]} 11. Nc3 {[%clk 0:02:38]}  O-O {[%clk 0:02:46]} 12. Rd1 {[%clk 0:02:32]}  Be6 {[%clk 0:02:38]} 13. Na4 {[%clk 0:02:27]}  Rc8 {[%clk 0:02:29]} 14. Nc5 {[%clk 0:02:25]}  Qd6 {[%clk 0:02:26]} 15. b4 {[%clk 0:02:19]}  a5 {[%clk 0:02:24]} 16. Bf4 {[%clk 0:02:15]}  Qd8 {[%clk 0:02:24]} 17. Nb7 {[%clk 0:02:08]}  Qb6 {[%clk 0:02:22]} 18. Nxa5 {[%clk 0:01:51]}  Bxb4 {[%clk 0:02:19]} 19. Nb3 {[%clk 0:01:51]}  Be7 {[%clk 0:02:12]} 20. Rab1 {[%clk 0:01:49]}  c5 {[%clk 0:02:08]} 21. Nd4 {[%clk 0:01:41]}  Qa6 {[%clk 0:02:06]} 22. Nxe6 {[%clk 0:01:39]}  fxe6 {[%clk 0:02:06]} 23. e4 {[%clk 0:01:33]}  d4 {[%clk 0:02:04]} 24. Bf1 {[%clk 0:01:29]}  Qc6 {[%clk 0:01:57]} 25. Bc4 {[%clk 0:01:28]}  Kf7 {[%clk 0:01:54]} 26. Rb3 {[%clk 0:00:55]}  Qxe4 {[%clk 0:01:43]} 27. Qxe4 {[%clk 0:00:53]}  Nxe4 {[%clk 0:01:43]} 28. Re1 {[%clk 0:00:53]}  Ng5 {[%clk 0:01:28]} 29. Bxg5 {[%clk 0:00:52]}  Bxg5 {[%clk 0:01:29]} 30. Rxe6 {[%clk 0:00:40]}  Bf6 {[%clk 0:01:26]} 31. Rb7+ {[%clk 0:00:35]}  Kg6 {[%clk 0:01:26]} 32. Bd3+ {[%clk 0:00:32]}  Kh6 {[%clk 0:01:26]} 33. Bc4 {[%clk 0:00:18]}  Rfe8 {[%clk 0:01:26]} 34. Rbb6 {[%clk 0:00:12]}  Rxe6 {[%clk 0:01:24]} 35. Rxe6 {[%clk 0:00:13]}  Rb8 {[%clk 0:01:24]} 36. h4 {[%clk 0:00:13]}  Rb4 {[%clk 0:01:23]} 37. Bd3 {[%clk 0:00:13]}  c4 {[%clk 0:01:22]} 38. Bf5 {[%clk 0:00:11]}  d3 {[%clk 0:01:21]} 39. g4 {[%clk 0:00:11]}  d2 {[%clk 0:01:17]} 40. Rd6 {[%clk 0:00:06]}  g6 {[%clk 0:01:11]} 41. Bc2 {[%clk 0:00:04]}  Bc3 {[%clk 0:01:07]} 42. Rd7 {[%clk 0:00:02]}  Rb2 {[%clk 0:01:06]} 43. Bd1 {[%clk 0:00:01]}  g5 {[%clk 0:01:01]} 44. h5 {[%clk 0:00:01]}  Rb1 {[%clk 0:01:00]} 45. Rd6+ {[%clk 0:00:02]}  Kg7 {[%clk 0:01:00]} 46. h6+ {[%clk 0:00:02]}  Kf7 {[%clk 0:00:59]} 0-1


[Site "https://www.chess.com"]